bitfinex/quotes_SOLUSD_20250318
["timestamp","ask_amount","ask_price","bid_price","bid_amount"]
[1742277203628,14.49996427,124.57,124.54,25.56964886]
[1742277205851,14.49996427,124.57,124.54,33.59884886]
[1742277211057,14.49996427,124.57,124.54,33.62884886]
[1742277212056,14.49996427,124.57,124.54,6.95]
[1742277212057,14.49996427,124.56,124.54,6.95]
[1742277212243,14.49996427,124.55,124.54,6.95]
[1742277215255,14.49996427,124.56,124.54,6.95]
[1742277217151,14.49996427,124.56,124.54,14.9792]
[1742277217457,14.49996427,124.57,124.54,14.9792]
[1742277218357,0.063,124.59,124.58,20.56864628]
[1742277218564,0.063,124.59,124.58,26.17829514]
[1742277219232,0.063,124.59,124.58,34.20519514]
[1742277219651,0.063,124.59,124.58,48.70515941]
[1742277219952,0.03,124.6,124.59,19.21829514]
[1742277220154,0.03,124.6,124.59,33.71825941]
[1742277220957,0.03,124.62,124.6,0.28432314]
[1742277221265,0.03,124.62,124.6,41.74385941]
[1742277221466,0.03,124.62,124.6,27.24389514]
[1742277221643,0.03,124.62,124.6,41.74385941]
[1742277222147,0.03,124.62,124.6,27.24389514]
[1742277222346,0.03,124.62,124.6,41.74385941]
[1742277224857,0.03,124.62,124.6,27.24389514]
[1742277226770,0.03,124.62,124.6,41.74385941]
[1742277228676,0.03,124.62,124.6,27.24389514]
[1742277229165,0.03,124.62,124.6,41.74385941]
[1742277231778,0.03,124.62,124.6,27.24389514]
[1742277236076,0.03,124.62,124.6,27.30689514]
[1742277237659,0.03,124.62,124.6,8.0886]
[1742277237863,0.03,124.62,124.6,15.0286]
[1742277239177,0.03,124.62,124.6,8.0886]
[1742277239364,0.03,124.62,124.6,15.0286]
[1742277240981,14.52996427,124.62,124.6,15.0286]
[1742277243063,0.03,124.62,124.6,15.0286]
[1742277250183,0.03,124.62,124.6,34.24689514]
[1742277255687,0.03,124.62,124.6,7.003]
[1742277255893,14.52996427,124.62,124.6,7.003]
[1742277256075,14.52996427,124.62,124.6,6.983]
[1742277258690,22.55446427,124.62,124.6,6.983]
[1742277259197,14.56296427,124.61,124.6,6.983]
[1742277264199,0.063,124.61,124.6,6.983]
[1742277264579,0.063,124.61,124.6,48.72685941]
[1742277267303,0.063,124.61,124.6,360.72685941]
[1742277270400,0.0001,124.61,124.6,360.72685941]
[1742277271004,0.0001,124.62,124.61,19.21829514]
[1742277271297,0.0001,124.64,124.61,241.30150927]
[1742277271479,0.0001,124.64,124.63,35.35445941]
[1742277272588,0.0001,124.64,124.63,43.37815941]
[1742277274307,0.0001,124.64,124.63,355.37815941]
[1742277275577,0.0001,124.64,124.63,43.37815941]
[1742277275979,0.0001,124.64,124.63,28.87819514]
[1742277276292,0.0001,124.64,124.63,26.957672]
[1742277276600,0.0001,124.64,124.63,8.0237]
[1742277276904,0.0001,124.64,124.63,14.9837]
[1742277278909,0.0001,124.64,124.63,6.96]
[1742277279797,0.0001,124.64,124.63,14.9837]
[1742277280395,0.0001,124.64,124.62,8.024]
[1742277280593,0.0001,124.64,124.63,6.94]
[1742277283407,14.50006427,124.64,124.6,8.37272314]
[1742277283615,1.6903,124.65,124.61,6.94]
[1742277283801,14.49996427,124.62,124.61,6.94]
[1742277283993,14.49996427,124.62,124.6,0.063]
[1742277284193,14.49996427,124.62,124.61,6.94]
[1742277287512,14.49996427,124.63,124.61,6.94]
[1742277288312,14.49996427,124.62,124.61,6.94]
[1742277293424,8.0531,124.64,124.61,6.94]
[1742277293712,14.49996427,124.63,124.61,6.94]
[1742277293925,14.49996427,124.62,124.61,6.94]
[1742277294291,14.52996427,124.64,124.61,14.965]
[1742277294521,0.03,124.64,124.61,14.965]
[1742277296925,0.03,124.64,124.61,35.0275]
[1742277297324,0.03,124.64,124.61,347.0275]
[1742277297620,0.03,124.64,124.61,347.0905]
[1742277300325,0.03,124.64,124.61,15.028]
[1742277313932,0.03,124.64,124.62,20.87879514]
[1742277314135,0.03,124.64,124.63,14.49996427]
[1742277315318,0.03,124.64,124.63,22.52366427]
[1742277317039,0.03,124.64,124.63,334.52366427]
[1742277322339,0.03,124.64,124.63,334.58666427]
[1742277324637,0.03,124.64,124.63,353.80495941]
[1742277329247,0.03,124.64,124.63,41.80495941]
[1742277329747,0.0001,124.64,124.63,186.36125941]
[1742277329928,0.03,124.65,124.64,19.21829514]
[1742277329929,0.0001,124.65,124.64,19.21829514]
[1742277330124,0.0001,124.65,124.64,35.32200404]
[1742277330427,0.0001,124.66,124.64,43.34510404]
[1742277330622,0.0001,124.66,124.65,40.63825941]
[1742277331449,0.0001,124.66,124.65,262.47825941]
[1742277332243,0.0001,124.66,124.65,574.47825941]
[1742277332445,0.0001,124.66,124.65,582.50065941]
[1742277334047,0.0001,124.66,124.65,584.08225941]
[1742277334844,0.0001,124.66,124.65,272.08225941]
[1742277335553,0.0001,124.66,124.65,410.18225941]
[1742277337841,0.0001,124.66,124.65,722.18225941]
[1742277338552,0.0001,124.66,124.65,410.18225941]
[1742277340137,0.0001,124.66,124.65,419.00147603]
[1742277340958,0.063,124.7,124.66,19.21829514]
[1742277341144,0.063,124.7,124.69,33.71825941]
[1742277341446,0.063,124.7,124.69,40.63825941]
[1742277341634,0.063,124.7,124.69,352.63825941]
[1742277343262,0.063,124.7,124.69,360.65805941]
[1742277343460,0.063,124.7,124.69,48.65805941]
[1742277352961,0.063,124.7,124.69,360.65805941]
[1742277355964,0.063,124.7,124.69,48.65805941]
[1742277358944,0.063,124.7,124.69,353.73805941]
[1742277359144,0.063,124.7,124.69,360.65805941]
[1742277362473,0.063,124.7,124.69,48.65805941]
[1742277363771,0.0001,124.7,124.69,188.41065941]
[1742277364150,0.0001,124.71,124.7,33.71825941]
[1742277365472,0.0001,124.71,124.7,345.71825941]
[1742277366680,0.0001,124.71,124.7,359.85385941]
[1742277367173,0.0001,124.71,124.7,588.49385941]
[1742277367751,0.0001,124.71,124.7,726.59385941]
[1742277371489,0.0001,124.71,124.7,720.47745941]
[1742277372482,0.0001,124.71,124.7,713.55745941]
[1742277372854,0.0001,124.71,124.7,408.47745941]
[1742277373579,0.0001,124.71,124.7,270.37745941]
[1742277375783,0.0001,124.71,124.7,582.37745941]
[1742277377293,0.0001,124.71,124.7,270.37745941]
[1742277380172,0.0001,124.71,124.7,271.92015941]
[1742277380488,0.0001,124.71,124.7,593.23937603]
[1742277380779,0.03,124.73,124.72,39.21829514]
[1742277380953,0.03,124.73,124.72,53.71825941]
[1742277381156,0.03,124.74,124.73,19.21829514]
[1742277381967,0.03,124.74,124.73,33.71825941]
[1742277382874,0.03,124.74,124.73,41.73555941]
[1742277384082,0.03,124.74,124.73,353.73555941]
[1742277395597,0.03,124.74,124.73,353.79855941]
[1742277403796,0.03,124.74,124.73,575.45855941]
[1742277404509,0.03,124.74,124.73,263.45855941]
[1742277407588,0.03,124.74,124.73,575.45855941]
[1742277408790,0.03,124.74,124.73,713.55855941]
[1742277411907,0.0001,124.75,124.73,713.55855941]
[1742277412201,0.0001,124.75,124.74,40.63825941]
[1742277412418,0.0001,124.75,124.74,42.16195941]
[1742277414203,0.0001,124.75,124.74,50.17855941]
[1742277415012,0.0001,124.75,124.74,362.17855941]
[1742277417098,0.0001,124.75,124.74,360.65485941]
[1742277420014,0.0001,124.75,124.74,48.65485941]
[1742277422807,0.0001,124.75,124.74,270.27485941]
[1742277423121,0.0001,124.75,124.74,582.27485941]
[1742277423516,0.0001,124.75,124.74,720.37485941]
[1742277425418,0.0001,124.75,124.74,408.37485941]
[1742277428215,0.0001,124.75,124.74,466.37471649]
[1742277428412,0.0001,124.75,124.74,778.37471649]
[1742277430217,0.03,124.77,124.74,778.37471649]
[1742277430218,0.0001,124.77,124.76,0.28432314]
[1742277430517,0.0001,124.77,124.76,171.81825941]
[1742277431301,0.0001,124.77,124.76,179.83355941]
[1742277433620,0.03,124.79,124.77,19.21829514]
[1742277433824,0.03,124.79,124.78,40.61825941]
[1742277434326,0.03,124.79,124.78,352.61825941]
[1742277435316,0.03,124.79,124.78,360.63235941]
[1742277436112,0.03,124.79,124.78,48.63235941]
[1742277437724,0.03,124.79,124.78,34.13239514]
[1742277439226,0.03,124.79,124.78,346.13239514]
[1742277440329,0.03,124.79,124.78,360.63235941]
[1742277443032,0.0001,124.79,124.78,360.63235941]
[1742277444029,0.0001,124.79,124.78,498.73235941]
[1742277450842,12.53006427,124.85,124.79,19.21829514]
[1742277451045,15.6268,124.86,124.8,14.49996427]
[1742277451247,14.49996427,124.85,124.8,14.49996427]
[1742277452241,14.49996427,124.85,124.82,19.21829514]
[1742277452443,14.49996427,124.85,124.83,6.9]
[1742277453817,30.12676427,124.86,124.83,6.9]
[1742277454341,22.11776427,124.86,124.83,14.9104]
[1742277454916,22.11776427,124.86,124.84,19.21829514]
[1742277454917,16.03526427,124.86,124.84,19.21829514]
[1742277455122,1.5353,124.86,124.84,19.21829514]
[1742277455428,14.52996427,124.87,124.84,19.21829514]
[1742277456644,14.52996427,124.87,124.84,27.22809514]
[1742277457946,0.03,124.85,124.84,27.22809514]
[1742277462750,0.03,124.85,124.84,19.21829514]
[1742277463326,14.52996427,124.85,124.83,6.9]
[1742277464448,0.03,124.85,124.83,14.9108]
[1742277465231,0.03,124.85,124.84,19.21829514]
[1742277467258,0.03,124.85,124.84,27.22849514]
[1742277473460,0.03,124.85,124.84,41.72845941]
[1742277474659,0.03,124.85,124.84,43.33895941]
[1742277474963,0.0001,124.85,124.84,181.43895941]
[1742277475135,0.0001,124.85,124.84,190.25817603]
[1742277476655,0.0001,124.85,124.84,502.25817603]
[1742277479569,0.0001,124.85,124.84,509.15817603]
[1742277485570,0.0001,124.85,124.84,197.15817603]
[1742277486467,0.0001,124.85,124.84,188.33895941]
[1742277486856,0.0001,124.85,124.84,409.77895941]
[1742277487058,0.0001,124.85,124.84,408.16845941]
[1742277487653,0.0001,124.85,124.84,393.66849514]
[1742277488274,0.0001,124.85,124.84,221.44]
[1742277488573,14.50006427,124.85,124.84,228.34]
[1742277489477,0.0001,124.85,124.84,228.34]
[1742277492078,14.50006427,124.85,124.84,6.9]
[1742277493179,22.50966427,124.85,124.83,0.063]
[1742277493370,14.49996427,124.84,124.83,6.963]
[1742277498084,14.49996427,124.84,124.78,0.063]
[1742277498085,20.0,124.81,124.78,0.063]
[1742277498287,20.0,124.81,124.77,0.063]
[1742277498288,14.49996427,124.79,124.77,0.063]
[1742277498587,14.49996427,124.79,124.74,12.65180732]
[1742277498588,14.49996427,124.75,124.74,12.65180732]
[1742277498978,51.28470613,124.75,124.74,12.65180732]
[1742277499281,109.28456321,124.75,124.74,12.65180732]
[1742277499580,109.28456321,124.75,124.74,0.063]
[1742277499785,109.28456321,124.75,124.73,0.063]
[1742277499964,109.28456321,124.74,124.73,0.063]
[1742277500165,117.30116321,124.74,124.73,0.063]
[1742277500573,80.51642135,124.74,124.73,0.063]
[1742277506088,22.51656427,124.74,124.73,0.063]
[1742277506677,80.51642135,124.74,124.73,0.063]
[1742277515794,22.51656427,124.74,124.73,0.063]
[1742277516183,80.51642135,124.74,124.73,0.063]
[1742277516690,100.55802135,124.74,124.7,0.063]
[1742277516894,14.49996427,124.71,124.7,0.063]
[1742277520082,22.51856427,124.71,124.7,0.063]
[1742277538713,14.49996427,124.71,124.7,0.063]
[1742277541720,14.49996427,124.72,124.7,0.063]
[1742277544025,14.52996427,124.73,124.7,1.6698]
[1742277544525,0.03,124.73,124.7,1.6698]
[1742277545529,0.03,124.73,124.71,19.21829514]
[1742277546030,0.03,124.73,124.72,8.0179]
[1742277549716,0.03,124.73,124.72,27.23619514]
[1742277550235,8.0143,124.78,124.72,27.23619514]
[1742277550236,14.49996427,124.81,124.73,26.97039514]
[1742277550413,14.49996427,124.8,124.75,345.71825941]
[1742277550614,14.49996427,124.8,124.77,18.933972]
[1742277550811,14.49996427,124.81,124.78,0.28432314]
[1742277552635,14.49996427,124.81,124.78,8.29802314]
[1742277554038,14.49996427,124.82,124.79,9.6668]
[1742277555017,14.49996427,124.83,124.79,9.6668]
[1742277555832,14.49996427,124.82,124.79,9.6668]
[1742277556137,14.52996427,124.82,124.8,6.9]
[1742277557237,14.49996427,124.81,124.8,6.9]
[1742277558322,14.52996427,124.82,124.8,6.9]
[1742277558717,0.03,124.82,124.8,14.9127]
[1742277562939,0.03,124.82,124.8,8.0127]
[1742277563241,0.03,124.82,124.81,6.9]
[1742277563832,0.03,124.82,124.81,14.9121]
[1742277565453,0.03,124.82,124.81,6.9]
[1742277567020,0.03,124.82,124.81,14.9121]
[1742277568120,0.03,124.82,124.81,6.9]
[1742277569521,0.03,124.82,124.81,14.9121]
[1742277571941,0.03,124.82,124.81,34.13039514]
[1742277574047,0.03,124.82,124.81,27.23039514]
[1742277574230,0.03,124.82,124.81,34.13039514]
[1742277574433,0.03,124.82,124.81,48.63035941]
[1742277575152,0.03,124.82,124.81,360.63035941]
[1742277575453,0.03,124.82,124.81,48.63035941]
[1742277578751,0.03,124.82,124.81,34.13039514]
[1742277579634,0.03,124.82,124.81,48.63035941]
[1742277581452,0.03,124.82,124.81,34.13039514]
[1742277581641,0.03,124.82,124.81,48.63035941]
[1742277583054,0.03,124.82,124.81,34.13039514]
[1742277584781,0.03,124.82,124.81,48.63035941]
[1742277584961,0.03,124.82,124.81,34.13039514]
[1742277587554,0.03,124.82,124.81,48.63035941]
[1742277588852,0.03,124.82,124.81,186.73035941]
[1742277589056,0.0001,124.82,124.81,194.67525941]
[1742277589258,0.03,124.84,124.83,20.28432314]
[1742277589438,0.03,124.84,124.83,33.71825941]
[1742277589639,0.03,124.84,124.83,41.72905941]
[1742277590733,0.03,124.84,124.83,353.72905941]
[1742277592933,0.03,124.84,124.83,41.72905941]
[1742277593134,0.03,124.84,124.83,27.22909514]
[1742277594463,0.03,124.84,124.83,34.12909514]
[1742277595559,0.03,124.84,124.83,26.11829514]
[1742277597160,0.03,124.84,124.83,19.21829514]
[1742277597366,0.03,124.84,124.83,26.11829514]
[1742277599272,0.03,124.84,124.83,34.12909514]
[1742277599653,0.03,124.84,124.83,26.11829514]
[1742277599847,0.03,124.84,124.83,34.12909514]
[1742277600474,14.52996427,124.84,124.8,221.5]
[1742277600649,14.49996427,124.83,124.8,221.5]
[1742277600850,14.49996427,124.83,124.8,229.5126]
[1742277601263,14.49996427,124.83,124.8,221.5]
[1742277603074,22.51096427,124.83,124.8,221.5]
[1742277603654,14.49996427,124.83,124.8,221.5]
[1742277604165,14.52996427,124.84,124.81,18.933972]
[1742277604684,14.49996427,124.83,124.8,221.5]
[1742277605058,22.51126427,124.83,124.8,221.5]
[1742277605781,14.49996427,124.82,124.8,221.5]
[1742277605956,14.49996427,124.81,124.79,19.21829514]
[1742277606274,14.49996427,124.81,124.77,459.6454]
[1742277606467,14.49996427,124.8,124.76,8.0151]
[1742277606779,14.49996427,124.8,124.77,18.933972]
[1742277607383,14.49996427,124.8,124.77,26.948572]
[1742277607767,14.49996427,124.8,124.77,18.933972]
[1742277608079,22.51276427,124.8,124.77,18.933972]
[1742277609180,14.49996427,124.8,124.77,18.933972]
[1742277609482,14.49996427,124.79,124.77,18.933972]
[1742277610476,8.0129,124.8,124.75,6.9]
[1742277610477,14.49996427,124.78,124.75,6.9]
[1742277610862,14.49996427,124.78,124.75,14.9158]
[1742277611174,14.49996427,124.79,124.75,14.9158]
[1742277612578,8.012,124.82,124.76,19.21829514]
[1742277612778,14.49996427,124.81,124.76,19.21829514]
[1742277613192,14.49996427,124.81,124.76,33.71825941]
[1742277613363,14.49996427,124.81,124.77,8.0147]
[1742277613763,14.49996427,124.79,124.76,26.949072]
[1742277615168,14.49996427,124.8,124.76,26.949072]
[1742277615986,14.49996427,124.81,124.76,41.44903627]
[1742277616392,14.49996427,124.81,124.76,61.48743627]
[1742277616992,14.52996427,124.82,124.76,61.48743627]
[1742277617488,14.52996427,124.82,124.76,373.48743627]
[1742277617489,14.49996427,124.81,124.76,373.48743627]
[1742277621994,14.49996427,124.79,124.76,26.949072]
[1742277623100,14.49996427,124.78,124.75,18.933972]
[1742277623295,14.49996427,124.77,124.74,228.483]
[1742277623487,14.49996427,124.78,124.74,236.4993]
[1742277623687,14.49996427,124.78,124.75,18.933972]
[1742277624081,14.49996427,124.78,124.74,236.4993]
[1742277624490,14.49996427,124.79,124.75,18.933972]
[1742277625299,14.49996427,124.79,124.76,8.0153]
[1742277625694,14.49996427,124.78,124.74,6.963]
[1742277625997,8.0134,124.79,124.74,6.963]
[1742277625998,14.49996427,124.77,124.74,6.963]
[1742277626203,14.49996427,124.77,124.76,0.063]
[1742277626493,14.49996427,124.78,124.76,0.063]
[1742277637211,14.49996427,124.79,124.76,0.063]
[1742277637385,14.49996427,124.81,124.76,0.34732314]
[1742277637892,14.49996427,124.81,124.77,8.0147]
[1742277638580,14.49996427,124.78,124.76,0.063]
[1742277638779,14.49996427,124.77,124.76,0.063]
[1742277639416,14.49996427,124.77,124.74,0.063]
[1742277639590,14.49996427,124.75,124.74,0.063]
[1742277639790,22.51596427,124.75,124.74,0.063]
[1742277641609,8.0153,124.76,124.74,0.063]
[1742277641908,22.51596427,124.75,124.74,0.063]
[1742277651112,80.51582135,124.75,124.74,0.063]
[1742277651312,22.51596427,124.75,124.74,0.063]
[1742277651611,80.51582135,124.75,124.74,0.063]
[1742277651908,22.51596427,124.75,124.74,0.063]
[1742277660923,14.49996427,124.75,124.74,0.063]
[1742277665725,0.03,124.76,124.74,18.996972]
[1742277666019,0.03,124.76,124.75,14.78428741]
[1742277666199,0.03,124.76,124.75,33.71825941]
[1742277667720,0.03,124.76,124.75,41.73425941]
[1742277668620,0.03,124.82,124.77,0.28432314]
[1742277668919,0.03,124.82,124.79,0.28432314]
[1742277669615,0.03,124.82,124.8,8.0128]
[1742277669919,14.49996427,124.81,124.78,14.9138]
[1742277670399,14.49996427,124.8,124.78,14.9138]
[1742277671924,14.49996427,124.79,124.78,14.9138]
[1742277673007,14.49996427,124.79,124.78,6.9]
[1742277673413,14.49996427,124.79,124.76,26.80671043]
[1742277673615,14.49996427,124.78,124.76,26.80671043]
[1742277674013,14.49996427,124.77,124.75,1.5787]
[1742277674219,14.49996427,124.76,124.75,1.5787]
[1742277674524,14.49996427,124.76,124.74,0.063]
[1742277674717,14.49996427,124.75,124.74,0.063]
[1742277680608,14.49996427,124.78,124.74,0.063]
[1742277680803,0.03,124.8,124.74,0.063]
[1742277681015,14.49996427,124.78,124.74,0.34732314]
[1742277681215,14.49996427,124.79,124.75,8.30032314]
[1742277681430,14.49996427,124.78,124.75,8.30032314]
[1742277683637,14.49996427,124.79,124.76,18.64964886]
[1742277684519,14.49996427,124.79,124.76,25.54964886]
[1742277684929,14.49996427,124.79,124.76,27.20984886]
[1742277685130,14.52996427,124.8,124.78,8.0141]
[1742277687241,14.49996427,124.79,124.77,8.29872314]
[1742277693621,0.03,124.8,124.77,8.29872314]
[1742277693826,14.49996427,124.79,124.77,8.29872314]
[1742277694227,14.52996427,124.8,124.77,8.29872314]
[1742277694440,0.03,124.8,124.78,18.64964886]
[1742277694624,0.03,124.8,124.79,26.947372]
[1742277698042,0.03,124.8,124.79,27.23169514]
[1742277698925,14.52996427,124.8,124.78,138.1]
[1742277699232,14.49996427,124.79,124.78,138.1]
[1742277699639,14.52996427,124.8,124.78,138.1]
[1742277700751,22.54276427,124.8,124.77,18.933972]
[1742277701345,14.52996427,124.8,124.77,18.933972]
[1742277702533,22.54276427,124.8,124.77,18.933972]
[1742277703128,0.03,124.8,124.77,26.948672]
[1742277705543,0.03,124.8,124.78,18.79181043]
[1742277705747,0.03,124.8,124.78,26.80571043]
[1742277706928,0.03,124.8,124.79,0.14216157]
[1742277707751,0.03,124.8,124.79,26.947372]
[1742277708057,0.03,124.8,124.78,0.14216157]
[1742277708058,0.03,124.8,124.77,19.21829514]
[1742277709249,0.03,124.8,124.77,27.23289514]
[1742277711255,0.03,124.8,124.77,41.73285941]
[1742277711761,0.03,124.8,124.77,61.76965941]
[1742277712539,0.03,124.8,124.77,47.26969514]
[1742277719877,0.03,124.8,124.77,61.76965941]
[1742277720361,0.03,124.8,124.79,33.71825941]
[1742277721154,0.03,124.8,124.79,41.73165941]
[1742277721345,0.03,124.8,124.79,27.23169514]
[1742277723170,0.03,124.8,124.79,41.73165941]
[1742277723343,0.03,124.8,124.79,353.73165941]
[1742277723537,0.0001,124.8,124.79,493.41045941]
[1742277724157,0.03,124.84,124.83,0.28432314]
[1742277724363,0.03,124.84,124.83,198.71825941]
[1742277725159,0.03,124.84,124.83,206.72905941]
[1742277725345,0.0001,124.85,124.84,19.21829514]
[1742277725548,0.0001,124.85,124.84,33.71825941]
[1742277725965,0.0001,124.85,124.84,171.81825941]
[1742277727353,0.0001,124.85,124.84,179.82845941]
[1742277727555,0.0001,124.85,124.84,491.82845941]
[1742277728866,0.0001,124.85,124.84,171.944172]
[1742277729039,0.0001,124.85,124.84,186.72845941]
[1742277729465,0.0001,124.85,124.84,172.08633357]
[1742277729665,0.0001,124.85,124.84,164.07613357]
[1742277729870,0.0001,124.85,124.84,26.11829514]
[1742277730665,0.0001,124.85,124.84,34.12849514]
[1742277730851,0.0001,124.85,124.84,27.22849514]
[1742277731050,0.0001,124.85,124.84,34.12849514]
[1742277734654,0.0001,124.85,124.84,26.11829514]
[1742277735264,0.0001,124.85,124.84,34.12849514]
[1742277738280,0.0001,124.85,124.84,48.62845941]
[1742277740273,0.0001,124.85,124.84,186.72845941]
[1742277743370,0.0001,124.85,124.84,498.72845941]
[1742277746987,0.0001,124.85,124.84,498.79145941]
[1742277749584,0.0001,124.85,124.84,186.79145941]
[1742277752583,0.0001,124.85,124.84,498.79145941]
[1742277754185,0.0001,124.85,124.84,186.79145941]
[1742277757186,0.0001,124.85,124.84,498.79145941]
[1742277762782,0.0001,124.85,124.84,498.50713627]
[1742277765194,0.0001,124.85,124.84,186.79145941]
[1742277768194,0.0001,124.85,124.84,498.79145941]
[1742277770309,0.0001,124.85,124.84,477.39149514]
[1742277770484,0.0001,124.85,124.84,172.29149514]
[1742277770683,0.0001,124.85,124.84,186.79145941]
[1742277777800,0.0001,124.85,124.84,498.79145941]
[1742277780610,0.0001,124.85,124.84,186.79145941]
[1742277781189,0.0001,124.85,124.84,48.69145941]
[1742277783606,0.0001,124.85,124.84,360.69145941]
[1742277784509,0.03,124.87,124.84,380.71705941]
[1742277784724,0.03,124.87,124.86,14.49996427]
[1742277785017,0.03,124.87,124.86,0.14216157]
[1742277786386,0.03,124.87,124.86,8.15106157]
[1742277788493,0.03,124.87,124.86,8.0089]
[1742277788694,0.03,124.87,124.86,26.80071043]
[1742277788895,0.03,124.87,124.86,26.65854886]
[1742277789094,0.03,124.87,124.86,26.80071043]
[1742277792414,0.03,124.87,124.86,26.942872]
[1742277793922,0.03,124.87,124.86,26.80071043]
[1742277795001,14.52996427,124.87,124.84,0.063]
[1742277795207,14.49996427,124.85,124.84,0.063]
[1742277795620,14.49996427,124.86,124.84,0.063]
[1742277796920,0.03,124.87,124.84,18.71264886]
[1742277797522,0.03,124.87,124.85,0.28432314]
[1742277797726,0.03,124.87,124.86,14.64212584]
[1742277798022,0.03,124.87,124.86,14.49996427]
[1742277798508,0.03,124.87,124.86,41.3006747]
[1742277799604,0.03,124.87,124.86,41.44283627]
[1742277800026,0.03,124.87,124.86,41.72715941]
[1742277801129,0.03,124.87,124.86,26.942872]
[1742277801830,0.03,124.87,124.86,26.65854886]
[1742277802011,0.03,124.87,124.86,26.80071043]
[1742277810912,0.03,124.87,124.86,26.942872]
[1742277811129,0.03,124.87,124.86,353.44283627]
[1742277812540,0.03,124.87,124.86,26.942872]
[1742277813843,0.03,124.87,124.86,41.44283627]
[1742277814219,0.03,124.87,124.86,26.942872]
[1742277819645,0.03,124.87,124.86,26.80071043]
[1742277825547,14.52996427,124.87,124.84,0.063]
[1742277825841,14.49996427,124.85,124.84,0.063]
[1742277827048,22.50956427,124.85,124.84,0.063]
[1742277841053,22.50956427,124.85,124.84,0.0001]
[1742277841255,29.40956427,124.85,124.84,0.0001]
[1742277841464,29.40956427,124.85,124.78,18.64964886]
[1742277841465,91.51044898,124.85,124.76,0.20516157]
[1742277841759,14.49996427,124.81,124.76,33.49693627]
[1742277842143,14.49996427,124.8,124.76,18.996972]
[1742277842542,22.51306427,124.8,124.76,18.996972]
[1742277842749,14.49996427,124.8,124.76,18.996972]
[1742277843252,14.49996427,124.8,124.76,41.51213627]
[1742277844135,14.49996427,124.8,124.76,48.41213627]
[1742277844954,14.49996427,124.81,124.76,48.41213627]
[1742277848154,14.49996427,124.82,124.77,14.78428741]
[1742277848357,14.49996427,124.83,124.79,0.14216157]
[1742277848946,14.49996427,124.82,124.79,0.14216157]
[1742277849854,14.49996427,124.82,124.78,0.14216157]
[1742277850662,14.49996427,124.82,124.79,8.0134]
[1742277851537,14.49996427,124.83,124.79,8.0134]
[1742277852237,0.03,124.87,124.82,18.79181043]
[1742277852461,14.52996427,124.87,124.82,33.2917747]
[1742277852754,0.03,124.85,124.83,8.0108]
[1742277853466,14.52996427,124.85,124.82,26.80301043]
[1742277854176,14.52996427,124.85,124.82,8.0112]
[1742277855350,0.03,124.85,124.82,8.0112]
[1742277856448,0.03,124.85,124.82,28.04]
[1742277858268,0.03,124.85,124.82,8.0112]
[1742277858456,14.52996427,124.85,124.82,8.0112]
[1742277860557,14.49996427,124.84,124.81,26.66174886]
[1742277860958,14.49996427,124.84,124.81,8.0121]
[1742277861773,14.49996427,124.84,124.8,33.70431043]
[1742277864376,14.49996427,124.84,124.8,26.80431043]
[1742277864580,14.49996427,124.83,124.81,6.88]
[1742277865477,14.49996427,124.84,124.8,26.80431043]
[1742277865781,14.49996427,124.84,124.81,14.8917]
[1742277868471,14.49996427,124.82,124.79,0.1432]
[1742277868679,14.49996427,124.8,124.79,0.1432]
[1742277870003,22.51276427,124.8,124.79,0.1432]
[1742277870283,14.49996427,124.8,124.79,0.1432]
[1742277872185,14.49996427,124.81,124.79,8.1566]
[1742277872370,14.49996427,124.82,124.79,8.1566]
[1742277872682,14.49996427,124.81,124.79,8.1566]
[1742277873661,14.49996427,124.81,124.79,0.1432]
[1742277874385,14.49996427,124.8,124.79,0.1432]
[1742277878565,22.51276427,124.8,124.79,0.1432]
[1742277883195,80.51262135,124.8,124.79,0.1432]